bitfinex-derivatives/quotes_BTCF0:USTF0_20260118
["timestamp","ask_amount","ask_price","bid_price","bid_amount"]
[1768758219022,0.09452,95249.0,95238.0,0.10520167]
[1768758220518,0.010503,95247.0,95238.0,0.10520167]
[1768758225928,0.09452,95249.0,95238.0,0.10520167]
[1768758227531,0.010503,95246.0,95238.0,0.10520167]
[1768758231324,0.015503,95246.0,95238.0,0.10520167]
[1768758241845,0.005,95246.0,95238.0,0.10520167]
[1768758245654,0.010503,95245.0,95238.0,0.10520167]
[1768758249658,0.005,95246.0,95238.0,0.10520167]
[1768758251661,0.010503,95245.0,95238.0,0.10520167]
[1768758266270,0.04227272,95245.0,95228.0,0.11685008]
[1768758266474,0.010505,95234.0,95225.0,0.09399826]
[1768758266674,0.010505,95234.0,95225.0,0.08314826]
[1768758267473,0.010504,95237.0,95225.0,0.08314826]
[1768758267679,0.010505,95235.0,95225.0,0.06599826]
[1768758268363,0.010505,95235.0,95226.0,0.11867985]
[1768758268566,0.010505,95236.0,95226.0,0.11867985]
[1768758270277,0.010505,95234.0,95226.0,0.11867985]
[1768758271083,0.010504,95237.0,95226.0,0.11867985]
[1768758276474,0.09456,95244.0,95228.0,0.10878526]
[1768758276680,0.09456,95244.0,95229.0,0.10878526]
[1768758277067,0.09456,95244.0,95221.0,0.01713827]
[1768758277068,0.010505,95233.0,95221.0,0.01713827]
[1768758277278,0.010505,95233.0,95220.0,0.00015751]
[1768758277779,0.010505,95233.0,95221.0,0.10500175]
[1768758279077,0.010505,95233.0,95222.0,0.10878526]
[1768758284183,0.010505,95231.0,95222.0,0.10878526]
[1768758284376,0.09485729,95243.0,95222.0,0.10878526]
[1768758285482,0.010505,95231.0,95222.0,0.10878526]
[1768758294385,0.010505,95234.0,95222.0,0.10878526]
[1768758294589,0.010505,95234.0,95223.0,0.11653887]
[1768758294888,0.09456,95242.0,95224.0,0.11653887]
[1768758295389,0.010504,95238.0,95224.0,0.11653887]
[1768758296376,0.010504,95238.0,95225.0,0.09013796]
[1768758296681,0.010504,95241.0,95226.0,0.20667683]
[1768758296892,0.09456,95242.0,95229.0,0.11653887]
[1768758297376,0.005,95246.0,95229.0,0.11653887]
[1768758297578,0.09456,95243.0,95229.0,0.11653887]
[1768758298185,0.09456,95246.0,95234.0,0.11653887]
[1768758298395,0.010503,95247.0,95234.0,0.11653887]
[1768758299093,0.010503,95246.0,95234.0,0.11653887]
[1768758299788,0.010503,95246.0,95234.0,0.10603887]
[1768758300491,0.010503,95246.0,95234.0,0.04653887]
[1768758300893,0.09686975,95249.0,95234.0,0.04653887]
[1768758302395,0.010503,95245.0,95234.0,0.04653887]
[1768758302689,0.010503,95245.0,95228.0,0.01425832]
[1768758303701,0.010504,95243.0,95228.0,0.01425832]
[1768758304698,0.010504,95243.0,95229.0,0.05379425]
[1768758330923,0.010504,95243.0,95231.0,0.05204609]
[1768758338526,0.09505902,95248.0,95231.0,0.05204609]
[1768758338727,0.010504,95245.0,95231.0,0.05204609]
[1768758339130,0.010504,95244.0,95231.0,0.05204609]
[1768758341733,0.09505902,95248.0,95231.0,0.05204609]
[1768758342035,0.02320787,95247.0,95231.0,0.05204609]
[1768758342235,0.09505902,95248.0,95231.0,0.05204609]
[1768758342435,0.02320789,95247.0,95231.0,0.05204609]
[1768758342641,0.09505902,95248.0,95231.0,0.05204609]
[1768758342828,0.02320789,95247.0,95231.0,0.05204609]
[1768758343024,0.09505902,95248.0,95231.0,0.05204609]
[1768758343241,0.02320789,95247.0,95231.0,0.05204609]
[1768758343539,0.010504,95244.0,95231.0,0.05204609]
[1768758353249,0.09505902,95248.0,95231.0,0.05204609]
[1768758353451,0.010504,95244.0,95231.0,0.05204609]
[1768758362545,0.010503,95247.0,95231.0,0.05204609]
[1768758369970,0.010503,95247.0,95231.0,0.04259609]
[1768758370266,0.010504,95245.0,95231.0,0.04259609]
[1768758370765,0.010504,95245.0,95231.0,0.01459609]
[1768758373872,0.09456,95248.0,95231.0,0.01459609]
[1768758374171,0.02320666,95247.0,95231.0,0.01459609]
[1768758374370,0.09456,95248.0,95231.0,0.01459609]
[1768758374670,0.02320667,95247.0,95231.0,0.01459609]
[1768758374970,0.010504,95245.0,95231.0,0.01459609]
[1768758381168,0.010504,95245.0,95231.0,0.00689609]
[1768758381964,0.010504,95245.0,95228.0,0.00313941]
[1768758382368,0.010504,95245.0,95230.0,0.010505]
[1768758390473,0.010503,95246.0,95224.0,0.09456]
[1768758390782,0.10492853,95240.0,95226.0,0.010505]
[1768758392872,0.09956257,95242.0,95226.0,0.010505]
[1768758404194,0.09214448,95241.0,95226.0,0.010505]
[1768758405296,0.09214448,95241.0,95221.0,0.10564355]
[1768758405496,0.09214448,95241.0,95228.0,0.010505]
[1768758406098,0.09214448,95241.0,95221.0,0.06014855]
[1768758406396,0.09214448,95241.0,95222.0,0.10500506]
[1768758407497,0.09214448,95241.0,95229.0,0.010505]
[1768758407899,0.09214448,95241.0,95231.0,0.010505]
[1768758408196,0.09214448,95241.0,95222.0,0.10500727]
[1768758408595,0.09214448,95241.0,95232.0,0.010505]
[1768758408991,0.09214448,95241.0,95221.0,0.06962613]
[1768758409296,0.09214448,95241.0,95230.0,0.010505]
[1768758410399,0.09214448,95241.0,95221.0,0.06962613]
[1768758410897,0.09214448,95241.0,95222.0,0.10500286]
[1768758412901,0.09214448,95241.0,95226.0,0.010505]
[1768758415001,0.09136463,95240.0,95226.0,0.010505]
[1768758421212,0.09136463,95239.0,95226.0,0.010505]
[1768758421620,0.09136463,95238.0,95226.0,0.010505]
[1768758423922,0.09136463,95238.0,95228.0,0.010505]
[1768758427830,0.09136463,95238.0,95221.0,0.06962613]
[1768758428129,0.09136463,95238.0,95222.0,0.10500561]
[1768758428738,0.09136463,95238.0,95223.0,0.09456]
[1768758429428,0.09136463,95238.0,95224.0,0.10500892]
[1768758430333,0.09136463,95238.0,95225.0,0.010506]
[1768758430932,0.09136463,95238.0,95226.0,0.10500782]
[1768758431332,0.09136463,95238.0,95227.0,0.010505]
[1768758436540,0.09136463,95238.0,95224.0,0.010506]
[1768758436936,0.09136463,95238.0,95224.0,0.11551216]
[1768758437339,0.09136463,95238.0,95227.0,0.010505]
[1768758443438,0.20476398,95238.0,95227.0,0.010505]
[1768758443742,0.0974586,95237.0,95227.0,0.010505]
[1768758449040,0.0974586,95236.0,95227.0,0.010505]
[1768758449248,0.0974586,95233.0,95223.0,0.09456]
[1768758449648,0.0974586,95233.0,95224.0,0.10500727]
[1768758459354,0.0974586,95233.0,95224.0,0.11551327]
[1768758462658,0.0974586,95233.0,95224.0,0.10500727]
[1768758466677,0.09959106,95249.0,95230.0,0.010505]
[1768758466860,0.09728131,95247.0,95230.0,0.10494073]
[1768758467063,0.09728131,95245.0,95230.0,0.10494073]
[1768758467267,0.09728131,95243.0,95231.0,0.10501057]
[1768758467865,0.09728131,95242.0,95231.0,0.10501057]
[1768758468672,0.09728131,95242.0,95231.0,0.11551557]
[1768758472776,0.09728131,95242.0,95233.0,0.010505]
[1768758479781,0.09728131,95242.0,95230.0,0.10494073]
[1768758480182,0.09728131,95242.0,95231.0,0.10500065]
[1768758481081,0.11170793,95246.0,95231.0,0.10500065]
[1768758481382,0.11170793,95246.0,95233.0,0.010505]
[1768758482982,0.09124481,95245.0,95233.0,0.010505]
[1768758483184,0.09124481,95244.0,95233.0,0.010505]
[1768758483585,0.09124481,95242.0,95233.0,0.010505]
[1768758486888,0.09124481,95242.0,95235.0,0.010505]
[1768758487688,0.20295274,95242.0,95233.0,0.010505]
[1768758487888,0.09124481,95241.0,95233.0,0.010505]
[1768758490086,0.09124481,95240.0,95230.0,0.10494073]
[1768758490292,0.09124481,95239.0,95230.0,0.10494073]
[1768758490490,0.09124481,95239.0,95231.0,0.1050012]
[1768758491392,0.09124481,95239.0,95231.0,0.1155062]
[1768758494595,0.01753491,95239.0,95231.0,0.1155062]
[1768758496294,0.01753491,95239.0,95233.0,0.010505]
[1768758496894,0.11170793,95244.0,95233.0,0.010505]
[1768758497095,0.11170793,95244.0,95235.0,0.010504]
[1768758497794,0.00230975,95249.0,95235.0,0.010504]
[1768758498291,0.00230975,95249.0,95229.0,0.10494073]
[1768758498490,0.00230975,95249.0,95237.0,0.010504]
[1768758498794,0.09124481,95248.0,95237.0,0.010504]
[1768758498987,0.09124481,95248.0,95239.0,0.010504]
[1768758499289,0.09124481,95248.0,95235.0,0.010504]
[1768758499482,0.09124481,95248.0,95230.0,0.20644373]
[1768758499690,0.09124481,95248.0,95235.0,0.010504]
[1768758499886,0.20295274,95248.0,95231.0,0.10499624]
[1768758500285,0.11170793,95247.0,95234.0,0.010505]
[1768758500586,0.20295274,95246.0,95234.0,0.010505]
[1768758503295,0.20295274,95246.0,95230.0,0.10144573]
[1768758503594,0.20295274,95246.0,95234.0,0.010505]
[1768758504099,0.20295274,95246.0,95236.0,0.010504]
[1768758504596,0.09456,95253.0,95231.0,0.1050001]
[1768758504789,0.09456,95253.0,95230.0,0.10144573]
[1768758505098,0.09456,95253.0,95231.0,0.10499679]
[1768758505285,0.09456,95253.0,95237.0,0.010504]
[1768758506497,0.09044899,95251.0,95237.0,0.010504]
[1768758506796,0.11367262,95250.0,95237.0,0.010504]
[1768758507195,0.04112161,95262.0,95228.0,0.29400763]
[1768758507196,0.09044899,95257.0,95240.0,0.20988146]
[1768758507399,0.09044899,95263.0,95248.0,0.10498073]
[1768758507596,0.04183706,95267.0,95248.0,0.10494073]
[1768758507790,3.7e-07,95264.0,95256.0,0.010502]
[1768758507990,3.7e-07,95264.0,95259.0,0.010502]
[1768758509096,3.7e-07,95264.0,95256.0,0.010502]
[1768758514502,3.7e-07,95264.0,95253.0,0.010503]
[1768758524420,3.7e-07,95264.0,95252.0,0.09456]
[1768758524614,3.7e-07,95264.0,95252.0,0.105063]
[1768758525720,3.7e-07,95264.0,95255.0,0.010502]
[1768758533522,3.7e-07,95264.0,95254.0,0.107502]
[1768758533926,3.7e-07,95264.0,95254.0,0.21996361]
[1768758534627,3.7e-07,95264.0,95254.0,0.20946161]
[1768758535932,3.7e-07,95264.0,95254.0,0.21996361]
[1768758541932,3.7e-07,95264.0,95254.0,0.20946161]
[1768758554551,3.7e-07,95264.0,95255.0,0.20946161]
[1768758554851,3.7e-07,95264.0,95256.0,0.097]
[1768758555052,3.7e-07,95264.0,95256.0,0.20946161]
[1768758559652,3.7e-07,95264.0,95257.0,0.097]
[1768758561249,3.7e-07,95264.0,95257.0,0.20946161]
[1768758563459,3.7e-07,95264.0,95258.0,0.20565181]
[1768758563658,3.7e-07,95264.0,95259.0,0.20565181]
[1768758563959,3.7e-07,95264.0,95260.0,0.09269365]
[1768758569664,3.7e-07,95264.0,95262.0,0.09269365]
[1768758584682,3.7e-07,95264.0,95258.0,0.11295816]
[1768758595295,3.7e-07,95264.0,95258.0,0.20663386]
[1768758595492,3.7e-07,95264.0,95259.0,0.11575386]
[1768758595692,3.7e-07,95264.0,95260.0,0.0936757]
[1768758598396,3.7e-07,95264.0,95260.0,7e-07]
[1768758598700,0.010501,95263.0,95259.0,8.6e-07]
[1768758598890,0.010501,95263.0,95253.0,0.09452]
[1768758600297,0.010501,95263.0,95254.0,0.0936757]
[1768758600494,3.7e-07,95264.0,95247.0,0.07554957]
[1768758600708,0.10487063,95257.0,95245.0,8e-08]
[1768758600999,0.010503,95249.0,95241.0,0.09452]
[1768758601187,0.010503,95247.0,95237.0,0.09452]
[1768758601387,0.010503,95250.0,95237.0,0.09452]
[1768758601586,0.010503,95250.0,95237.0,0.21027386]
[1768758601987,0.010503,95250.0,95238.0,0.11575386]
[1768758604303,0.010503,95248.0,95238.0,0.11575386]
[1768758605401,0.010503,95245.0,95238.0,0.11575386]
[1768758607603,0.010503,95245.0,95233.0,0.09070818]
[1768758607998,0.010503,95245.0,95234.0,0.10499624]
[1768758608999,0.010503,95248.0,95234.0,0.10499624]
[1768758609707,0.010503,95248.0,95235.0,0.09815143]
[1768758610602,0.09452,95255.0,95235.0,0.09133344]
[1768758610807,0.09452,95255.0,95235.0,0.06543344]
[1768758611502,0.010503,95254.0,95235.0,0.02483344]
[1768758611702,0.010503,95254.0,95236.0,0.09578645]
[1768758613109,0.010503,95254.0,95240.0,0.10487063]
[1768758613308,0.1088714,95254.0,95240.0,0.10487063]
[1768758613910,0.1088714,95254.0,95239.0,0.09592885]
[1768758616102,0.1088714,95254.0,95239.0,0.08192885]
[1768758616410,0.1088714,95254.0,95233.0,0.010505]
[1768758616804,0.1088714,95254.0,95234.0,0.09099073]
[1768758618211,0.1088714,95254.0,95235.0,0.08137673]
[1768758618412,0.010503,95252.0,95235.0,0.08137673]
[1768758626518,0.0983684,95254.0,95235.0,0.08137673]
[1768758626709,0.0983684,95254.0,95231.0,0.02491255]
[1768758626710,0.0983684,95254.0,95237.0,0.07470853]
[1768758627417,0.0983684,95254.0,95237.0,0.08521253]
[1768758629615,0.10487063,95250.0,95237.0,0.07470853]
[1768758634923,0.010503,95253.0,95237.0,0.07470853]
[1768758637724,0.010503,95251.0,95237.0,0.07470853]
[1768758639034,0.15112787,95254.0,95237.0,0.07470853]
[1768758639227,0.1088714,95254.0,95237.0,0.07470853]
[1768758639628,0.0983684,95254.0,95237.0,0.07470853]
[1768758639829,0.13967789,95254.0,95237.0,0.07470853]
[1768758640129,0.0983684,95254.0,95237.0,0.07470853]
[1768758640328,0.0983684,95254.0,95238.0,0.010504]
[1768758640819,0.14055677,95254.0,95238.0,0.010504]
[1768758641019,0.0983684,95254.0,95238.0,0.010504]
[1768758641220,0.0983684,95254.0,95238.0,0.08507904]
[1768758641731,0.13924532,95254.0,95238.0,0.08507904]
[1768758642029,0.0983684,95254.0,95238.0,0.08507904]
[1768758642731,0.13984951,95254.0,95238.0,0.08507904]
[1768758643024,0.0983684,95254.0,95238.0,0.08507904]
[1768758643827,0.13916956,95254.0,95238.0,0.08507904]
[1768758644131,0.13916956,95254.0,95238.0,0.07457504]
[1768758644332,0.0983684,95254.0,95238.0,0.07457504]
[1768758644733,0.13944464,95254.0,95238.0,0.07457504]
[1768758645131,0.0983684,95254.0,95238.0,0.07457504]
[1768758645530,0.010503,95253.0,95238.0,0.07457504]
[1768758655555,0.0983684,95254.0,95238.0,0.07457504]
[1768758661848,0.010503,95253.0,95238.0,0.07457504]
[1768758663057,0.0983684,95254.0,95238.0,0.07457504]
[1768758664459,0.0983684,95254.0,95238.0,0.08507904]
[1768758674270,0.0983684,95254.0,95240.0,0.010504]
[1768758674866,0.09466508,95260.0,95243.0,0.010504]
[1768758675074,0.09452037,95264.0,95245.0,0.010503]
[1768758675262,0.02349121,95263.0,95245.0,0.010503]
[1768758675458,0.010501,95263.0,95246.0,0.10498522]
[1768758675664,0.09466508,95262.0,95246.0,0.10498522]
[1768758675862,0.09466508,95262.0,95242.0,0.010504]
[1768758676067,0.09466508,95260.0,95243.0,0.10498522]
[1768758676369,0.09466508,95260.0,95239.0,0.010504]
[1768758676868,0.09466508,95260.0,95241.0,0.07072106]
[1768758677469,0.09466508,95260.0,95242.0,0.10498632]
[1768758677673,0.09466508,95260.0,95242.0,0.17570738]
[1768758677971,0.09466508,95260.0,95242.0,0.07072106]
[1768758678373,0.09466508,95260.0,95243.0,0.10498632]
[1768758678873,0.09466508,95260.0,95244.0,0.06783828]
[1768758679473,0.09466508,95260.0,95245.0,0.10498467]
[1768758682974,0.09466508,95260.0,95245.0,0.09098467]
[1768758684068,0.09466508,95260.0,95245.0,0.07698467]
[1768758686276,0.09466508,95260.0,95245.0,0.08748767]
[1768758689370,0.09451598,95259.0,95245.0,0.07698467]
[1768758690280,0.09451598,95259.0,95245.0,0.06298467]
[1768758692180,0.09451598,95259.0,95246.0,0.010503]
[1768758692781,0.09451598,95259.0,95247.0,0.10498467]
[1768758693983,0.09451598,95259.0,95248.0,0.010503]
[1768758697284,0.09451598,95259.0,95242.0,0.06529999]
[1768758697786,0.09451598,95259.0,95246.0,0.010503]
[1768758698488,0.09451598,95259.0,95247.0,0.10498412]
[1768758703792,3.7e-07,95264.0,95249.0,0.10488613]
[1768758704396,3.7e-07,95264.0,95250.0,0.010503]
[1768758704584,3.7e-07,95264.0,95249.0,0.10138913]
[1768758705392,3.7e-07,95264.0,95250.0,0.010503]
[1768758705693,0.09917646,95264.0,95250.0,0.010503]
[1768758706193,0.09917609,95263.0,95250.0,0.010503]
[1768758706992,0.09917609,95263.0,95247.0,0.010503]
[1768758707190,0.21060662,95263.0,95250.0,0.10488613]
[1768758707392,0.09917609,95262.0,95250.0,0.10488613]
[1768758707592,0.09917609,95261.0,95250.0,0.10488613]
[1768758712597,0.09594178,95260.0,95250.0,0.10488613]
[1768758727604,0.09594178,95260.0,95248.0,0.010503]
[1768758731414,0.09594178,95260.0,95250.0,0.10488613]
[1768758731908,0.09594178,95260.0,95248.0,0.010503]
[1768758736814,0.09594178,95260.0,95241.0,0.15729102]
[1768758737017,0.09594178,95260.0,95244.0,0.010504]
[1768758737902,0.09594178,95260.0,95245.0,0.10498467]
[1768758739119,0.09397434,95260.0,95245.0,0.10498467]
[1768758740518,0.19886047,95260.0,95245.0,0.10498467]
[1768758740717,0.10488613,95260.0,95245.0,0.10498467]
[1768758741216,0.09594178,95259.0,95246.0,0.010503]
[1768758741817,0.09594178,95259.0,95247.0,0.10498412]
[1768758745419,0.097198,95250.0,95239.0,0.07564529]
[1768758745713,0.097198,95247.0,95242.0,0.10498357]
[1768758745919,0.11250201,95247.0,95235.0,0.07564529]
[1768758746113,0.11250201,95247.0,95236.0,0.10498357]
[1768758746318,0.11250201,95247.0,95233.0,0.17016529]
[1768758746618,0.11250201,95247.0,95235.0,0.10499624]
[1768758746816,0.11250201,95247.0,95233.0,0.17016529]
[1768758747213,0.11250201,95247.0,95234.0,0.10499624]
[1768758748722,0.11250201,95246.0,95232.0,0.17016529]
[1768758749018,0.11250201,95245.0,95233.0,0.10499734]
[1768758751321,0.11250201,95245.0,95232.0,0.09452]
[1768758751524,0.11250201,95245.0,95233.0,0.104999]
[1768758753822,0.097198,95246.0,95233.0,0.104999]
[1768758757428,0.11250201,95249.0,95233.0,0.104999]
[1768758758332,0.11250201,95249.0,95233.0,0.115504]
[1768758758530,0.11250201,95249.0,95236.0,0.010504]
[1768758758830,0.11250201,95249.0,95233.0,0.010505]
[1768758759231,0.11250201,95249.0,95233.0,0.11550179]
[1768758760931,0.09971765,95252.0,95233.0,0.11550179]
[1768758761232,0.21060287,95252.0,95233.0,0.11550179]
[1768758761527,0.19423765,95257.0,95234.0,0.11970473]
[1768758761733,0.11088522,95256.0,95234.0,0.11970473]
[1768758761924,0.11088522,95255.0,95234.0,0.11970473]
[1768758762232,0.11088522,95255.0,95235.0,0.10499514]
[1768758762434,0.11088522,95253.0,95235.0,0.10499514]
[1768758763135,0.11088522,95253.0,95234.0,0.010505]
[1768758763335,0.11088522,95253.0,95234.0,0.11549738]
[1768758770246,0.11088522,95252.0,95234.0,0.10499238]
[1768758773342,0.11088522,95252.0,95234.0,0.11549738]
[1768758774534,0.11088522,95252.0,95234.0,0.10499238]
[1768758780847,0.11088522,95252.0,95235.0,0.010505]
[1768758781645,0.11088522,95252.0,95236.0,0.10499459]
[1768758782351,0.11088522,95252.0,95237.0,0.010504]
[1768758782553,0.11088522,95252.0,95236.0,0.10499459]
[1768758782754,0.11088522,95252.0,95233.0,0.09408762]
[1768758783053,0.11088522,95252.0,95234.0,0.11549849]
[1768758800676,0.11088522,95252.0,95237.0,0.010504]
[1768758800977,0.11088522,95252.0,95235.0,0.07564529]
[1768758801277,0.11088522,95252.0,95240.0,0.010504]
[1768758806080,0.09452,95259.0,95240.0,0.09774012]
[1768758806281,0.11762921,95261.0,95240.0,0.1722122]
[1768758806477,0.09452,95260.0,95241.0,0.10499128]
[1768758806678,0.11762921,95259.0,95241.0,0.07944128]
[1768758806878,0.11762921,95258.0,95241.0,0.07944128]
[1768758807183,0.11762921,95257.0,95241.0,0.07944128]
[1768758807381,0.11762921,95257.0,95243.0,0.010504]
[1768758811986,0.21254866,95257.0,95243.0,0.010504]
[1768758813380,0.11762921,95256.0,95243.0,0.010504]
[1768758815587,0.11762921,95256.0,95245.0,0.010503]
[1768758819990,0.2106346,95256.0,95245.0,0.010503]
[1768758820193,0.11267037,95255.0,95245.0,0.010503]
[1768758820792,0.11267037,95253.0,95244.0,0.010504]
[1768758821491,0.11267037,95253.0,95240.0,0.1048955]
[1768758822293,0.11267037,95253.0,95244.0,0.001]
[1768758822494,0.11267037,95253.0,95244.0,0.011504]
[1768758822983,0.11267037,95253.0,95244.0,0.010504]
[1768758824292,0.11267037,95253.0,95241.0,0.010504]
[1768758824786,0.11267037,95253.0,95241.0,0.11549253]
[1768758840203,0.09300539,95254.0,95241.0,0.11549253]
[1768758842205,0.09300539,95254.0,95241.0,0.10498853]
[1768758842597,0.09300539,95254.0,95240.0,0.1048955]
[1768758842906,0.09300539,95254.0,95241.0,0.10498963]
[1768758857537,0.09300539,95254.0,95241.0,0.09588963]
[1768758884558,0.09300539,95254.0,95241.0,0.08188963]
[1768758884856,0.11325968,95256.0,95241.0,0.08188963]
[1768758885059,0.11325968,95256.0,95241.0,0.06788963]
[1768758898254,0.11325968,95256.0,95241.0,0.06088963]
[1768758913377,0.20888349,95256.0,95241.0,0.06088963]
[1768758913675,0.11773068,95255.0,95241.0,0.06088963]
[1768758914978,0.11773068,95255.0,95236.0,0.010504]
[1768758915278,0.11773068,95255.0,95242.0,0.10498908]
[1768758915576,0.11773068,95255.0,95236.0,0.010504]
[1768758915972,0.11773068,95255.0,95237.0,0.10498908]
[1768758917072,0.11773068,95255.0,95235.0,0.09452]
[1768758917273,0.11773068,95255.0,95236.0,0.10499128]
[1768758917578,0.11773068,95255.0,95236.0,0.22173487]
[1768758920680,0.15942182,95255.0,95236.0,0.22173487]
[1768758921680,0.11773068,95255.0,95236.0,0.22173487]
[1768758923180,0.15897104,95255.0,95236.0,0.22173487]
[1768758924683,0.15865424,95255.0,95236.0,0.22173487]
[1768758925784,0.15865424,95255.0,95236.0,0.23223887]
[1768758925983,0.15879217,95255.0,95236.0,0.23223887]
[1768758927783,0.15971294,95255.0,95236.0,0.23223887]
[1768758928586,0.11773068,95255.0,95236.0,0.23223887]
[1768758929185,0.15854681,95255.0,95236.0,0.23223887]
[1768758930085,0.11773068,95255.0,95236.0,0.23223887]
[1768758930890,0.15953355,95255.0,95236.0,0.23223887]
[1768758931692,0.15957181,95255.0,95236.0,0.23223887]
[1768758931892,0.11773068,95255.0,95236.0,0.23223887]
[1768758933795,0.15957181,95255.0,95236.0,0.23223887]
[1768758934989,0.11773068,95255.0,95236.0,0.23223887]
[1768758935195,0.1595625,95255.0,95236.0,0.23223887]
[1768758936292,0.15876576,95255.0,95236.0,0.23223887]
[1768758936698,0.11773068,95255.0,95236.0,0.23223887]
[1768758938098,0.15876576,95255.0,95236.0,0.23223887]
[1768758939701,0.11773068,95255.0,95236.0,0.23223887]
[1768758940899,0.11773068,95255.0,95240.0,0.10490239]
[1768758941101,0.15979104,95255.0,95240.0,0.10490239]
[1768758941297,0.11773068,95255.0,95240.0,0.10490239]
[1768758941488,0.11773068,95255.0,95241.0,0.10499183]
[1768758942497,0.15955673,95255.0,95241.0,0.10499183]
[1768758942698,0.11773068,95255.0,95241.0,0.10499183]
[1768758943796,0.15916831,95255.0,95241.0,0.10499183]
[1768758944390,0.15916831,95255.0,95240.0,0.10490239]
[1768758944897,0.15916831,95255.0,95241.0,0.10498908]
[1768758945090,0.15921517,95255.0,95241.0,0.10498908]
[1768758945692,0.11773068,95255.0,95241.0,0.10498908]
[1768758946200,0.15921517,95255.0,95241.0,0.10498908]
[1768758946593,0.09578132,95256.0,95241.0,0.10498908]
[1768758946800,5.1e-07,95256.0,95246.0,0.10490239]
[1768758946992,0.11860297,95263.0,95246.0,0.10490239]
[1768758947191,3.7e-07,95264.0,95247.0,0.010503]
[1768758947485,3.7e-07,95264.0,95250.0,0.21961471]
[1768758947685,0.11925848,95272.0,95255.0,0.010502]
[1768758947890,0.11925848,95272.0,95260.0,0.14961471]
[1768758948400,0.10490239,95270.0,95256.0,0.09112305]
[1768758948596,0.10490239,95270.0,95256.0,0.09128056]
[1768758948901,0.10490239,95270.0,95257.0,0.10497199]
[1768758949799,0.09452,95272.0,95257.0,0.10497199]
[1768758951195,0.10490239,95270.0,95257.0,0.10497199]
[1768758953694,0.21953292,95270.0,95257.0,0.10497199]
[1768758955290,0.21953292,95270.0,95242.0,0.07564529]
[1768758955291,0.2100162,95265.0,95247.0,0.010503]
[1768758955491,0.2100162,95264.0,95248.0,0.09452]
[1768758955895,0.10490239,95260.0,95249.0,0.10497199]
[1768758956500,0.2100162,95264.0,95249.0,0.00230975]
[1768758956702,0.2100162,95264.0,95250.0,0.10498191]
[1768758958702,0.2100162,95264.0,95250.0,0.19950191]
[1768758960803,0.2100162,95264.0,95250.0,0.3044043]
[1768758962406,0.12513153,95268.0,95250.0,0.19950191]
[1768758962708,0.2205172,95268.0,95250.0,0.19950191]
[1768758963101,0.11463053,95267.0,95250.0,0.3044043]
[1768758963805,0.2100162,95267.0,95250.0,0.3044043]
[1768758969910,0.09538567,95267.0,95250.0,0.19950191]
[1768758970104,0.09538567,95267.0,95250.0,0.3044043]
[1768758970499,0.09538567,95267.0,95250.0,0.19950191]
[1768758970699,0.09538567,95267.0,95250.0,0.3044043]
[1768758971008,0.09538567,95267.0,95250.0,0.19950191]
[1768758971204,0.09538567,95267.0,95250.0,0.3044043]
[1768758974113,0.09538567,95267.0,95250.0,0.41579216]
[1768758974713,0.11463053,95270.0,95250.0,0.41579216]
[1768758974903,0.21953292,95270.0,95250.0,0.41579216]
[1768758977205,0.21953292,95270.0,95251.0,0.11138786]
[1768758977716,0.21953292,95270.0,95251.0,0.12189086]
[1768758977916,0.21953292,95270.0,95252.0,0.10497585]
[1768758978309,0.21953292,95270.0,95252.0,0.09097585]
[1768758979010,0.21953292,95270.0,95252.0,0.07697585]
[1768758979215,0.09538567,95272.0,95260.0,0.10490239]
[1768758979516,0.09538567,95272.0,95256.0,0.010502]
[1768758979716,0.00015751,95273.0,95256.0,0.010502]
[1768758980425,0.00015751,95273.0,95257.0,0.10497089]
[1768758982120,0.10490239,95270.0,95257.0,0.10497089]
[1768758984218,0.00015751,95273.0,95257.0,0.10497089]
[1768758984423,0.10490239,95270.0,95257.0,0.10497089]
[1768758988028,0.10490239,95267.0,95257.0,0.10497089]
[1768758988420,0.31354608,95270.0,95257.0,0.10497089]
[1768758988729,0.31354608,95270.0,95251.0,0.09452]
[1768758989025,0.31354608,95270.0,95252.0,0.10497199]
[1768758989417,0.010501,95267.0,95250.0,0.09452]
[1768758989619,0.010501,95267.0,95251.0,0.1049753]
[1768758991232,0.010501,95269.0,95251.0,0.1049753]
[1768758993130,0.010501,95266.0,95251.0,0.1049753]
[1768758993428,0.010501,95266.0,95251.0,0.1994953]
[1768758993629,0.010501,95266.0,95251.0,0.31315154]
[1768758993817,0.010501,95266.0,95251.0,0.20817624]
[1768758994014,0.010501,95266.0,95252.0,0.10497585]
[1768758994231,0.010501,95269.0,95252.0,0.10497585]
[1768758995031,0.010501,95266.0,95252.0,0.10497585]
[1768758995232,0.010501,95266.0,95252.0,0.21863209]
[1768758997636,0.20198354,95270.0,95252.0,0.21863209]
[1768758997933,0.010501,95263.0,95252.0,0.21863209]
[1768758998123,0.010502,95261.0,95252.0,0.21863209]
[1768758998321,0.010502,95255.0,95249.0,0.00230975]
[1768758998635,0.010502,95255.0,95242.0,0.17016529]
[1768758999139,0.010502,95258.0,95245.0,0.10497861]
[1768758999433,0.010502,95258.0,95242.0,0.17016529]
[1768758999633,0.010502,95258.0,95243.0,0.10498853]
[1768759005035,0.010502,95258.0,95243.0,0.22173791]
[1768759005428,0.010502,95258.0,95243.0,0.11674938]
[1768759005832,0.010502,95258.0,95244.0,0.10498632]
[1768759009247,0.010502,95256.0,95244.0,0.10498632]
[1768759010466,0.04137006,95257.0,95244.0,3.2e-07]
[1768759010748,0.010503,95250.0,95238.0,0.17016529]
[1768759011140,0.010504,95245.0,95238.0,0.10498687]
[1768759011333,0.010504,95245.0,95238.0,0.08296167]
[1768759012447,0.010503,95249.0,95238.0,0.08296167]
[1768759014649,0.010503,95249.0,95238.0,0.01296167]
[1768759021249,0.05234792,95249.0,95238.0,0.01296167]
[1768759021852,0.010503,95249.0,95238.0,0.01296167]
[1768759024352,0.010503,95247.0,95238.0,0.01296167]
[1768759025649,0.010503,95250.0,95238.0,0.01296167]
[1768759029959,0.010504,95244.0,95238.0,0.01296167]
[1768759030148,0.010504,95242.0,95229.0,0.00231023]
[1768759031560,0.010504,95245.0,95229.0,0.00231023]
[1768759032759,0.10125852,95248.0,95229.0,0.11053923]
[1768759036364,0.09075552,95248.0,95229.0,0.11053923]
[1768759038755,0.09452,95247.0,95229.0,0.11053923]
[1768759039466,0.00230937,95264.0,95231.0,0.108229]
[1768759039759,0.00230937,95264.0,95229.0,0.00231023]
[1768759039760,0.00230937,95264.0,95251.0,0.09329576]
[1768759039963,0.010501,95270.0,95251.0,0.09329576]
[1768759040153,0.11814802,95273.0,95251.0,0.09329576]
[1768759041161,0.010501,95270.0,95251.0,0.09329576]
[1768759044574,0.11814802,95273.0,95251.0,0.20807703]
[1768759045477,0.11814802,95273.0,95253.0,0.010503]
[1768759045771,0.11814802,95273.0,95252.0,0.11478127]